bitfinex-derivatives/quotes_BTCF0:USTF0_20240913
["timestamp","ask_amount","ask_price","bid_price","bid_amount"]
[1726232659717,0.33987,57887.0,57886.0,0.20456626]
[1726232660008,0.42624,57887.0,57886.0,0.20456626]
[1726232660214,0.42624,57887.0,57886.0,0.11686626]
[1726232660513,0.086378,57882.0,57881.0,0.06879217]
[1726232660714,0.286376,57883.0,57879.0,0.06879217]
[1726232660912,0.086381,57880.0,57879.0,0.06879217]
[1726232661112,0.0526,57882.0,57875.0,0.3608]
[1726232661113,0.086387,57876.0,57875.0,0.3608]
[1726232661316,0.2,57877.0,57869.0,0.4680444]
[1726232661513,0.447182,57879.0,57869.0,0.4680444]
[1726232661514,0.447182,57879.0,57876.0,0.06876404]
[1726232661820,0.086388,57875.0,57874.0,0.0515816]
[1726232662016,0.172776,57875.0,57873.0,0.0515816]
[1726232662313,0.0552,57878.0,57871.0,0.0515396]
[1726232662314,0.086393,57872.0,57871.0,0.0515396]
[1726232662715,0.086393,57872.0,57869.0,0.42956404]
[1726232662919,0.2,57872.0,57869.0,0.51596104]
[1726232663119,0.086394,57871.0,57869.0,0.51596104]
[1726232663319,0.087389,57875.0,57869.0,0.42956404]
[1726232663509,0.0959749,57875.0,57872.0,0.05149678]
[1726232663707,0.0959749,57875.0,57874.0,0.08639]
[1726232664715,0.0949749,57875.0,57874.0,0.08639]
[1726232665308,0.0526,57882.0,57881.0,0.086379]
[1726232665518,0.06115548,57882.0,57881.0,0.086379]
[1726232667113,0.14753348,57882.0,57881.0,0.086379]
[1726232667916,0.14753348,57882.0,57881.0,0.087379]
[1726232668519,0.14853348,57882.0,57881.0,0.089379]
[1726232668715,0.14853348,57882.0,57881.0,0.093379]
[1726232671236,0.23491148,57882.0,57881.0,0.007]
[1726232672637,0.23391148,57882.0,57881.0,0.004]
[1726232672833,0.23391148,57882.0,57881.0,0.007]
[1726232673643,0.23391148,57882.0,57881.0,0.006]
[1726232674541,0.23391148,57882.0,57881.0,0.005]
[1726232675242,0.23391148,57882.0,57881.0,0.003]
[1726232676539,0.32028948,57882.0,57881.0,0.003]
[1726232677337,0.32028948,57882.0,57873.0,0.090391]
[1726232677338,1.17947548,57882.0,57873.0,0.004]
[1726232677541,1.17947548,57882.0,57869.0,0.004]
[1726232677542,0.086396,57870.0,57869.0,0.05149678]
[1726232677735,0.172794,57869.0,57868.0,0.05149678]
[1726232677940,0.0864,57867.0,57866.0,0.086402]
[1726232678146,0.3608,57874.0,57873.0,0.086391]
[1726232678336,0.64719,57874.0,57873.0,0.086391]
[1726232679534,0.65560291,57874.0,57873.0,0.086391]
[1726232680449,0.29580291,57874.0,57873.0,0.086391]
[1726232681347,0.29680291,57874.0,57873.0,0.089391]
[1726232682339,0.29680291,57874.0,57873.0,0.14081246]
[1726232682844,0.29680291,57874.0,57873.0,0.089391]
[1726232683549,0.29680291,57874.0,57873.0,0.003]
[1726232684147,0.38319291,57874.0,57873.0,0.003]
[1726232684747,0.09680291,57874.0,57873.0,0.003]
[1726232685048,0.36196,57884.0,57877.0,0.086385]
[1726232685248,0.086375,57885.0,57884.0,0.086375]
[1726232685449,0.2,57891.0,57884.0,0.086375]
[1726232685450,0.086365,57891.0,57890.0,0.086366]
[1726232685655,0.086365,57891.0,57883.0,0.5608]
[1726232685656,0.086367,57889.0,57888.0,0.3608]
[1726232685851,0.086367,57889.0,57888.0,0.41233619]
[1726232686051,0.447167,57889.0,57888.0,0.086369]
[1726232686252,0.086372,57886.0,57885.0,0.086373]
[1726232686451,0.086372,57886.0,57885.0,0.15509171]
[1726232686847,0.086372,57886.0,57885.0,0.086373]
[1726232687048,0.086372,57886.0,57885.0,0.15509171]
[1726232687243,0.3608,57889.0,57883.0,0.65]
[1726232687244,0.086373,57885.0,57884.0,0.086375]
[1726232687455,0.286373,57885.0,57884.0,0.1551651]
[1726232688348,0.293373,57885.0,57884.0,0.087375]
[1726232689258,0.286373,57885.0,57884.0,0.086375]
[1726232689646,0.292373,57885.0,57884.0,0.086375]
[1726232690149,0.086375,57884.0,57882.0,0.3608]
[1726232690452,0.206,57885.0,57882.0,0.3608]
[1726232690954,0.086376,57883.0,57882.0,0.3608]
[1726232691351,0.086376,57883.0,57882.0,0.3628]
[1726232692054,0.086376,57883.0,57882.0,0.3608]
[1726232692260,0.086376,57883.0,57882.0,0.3628]
[1726232693755,0.00867839,57885.0,57882.0,0.449177]
[1726232694066,0.086372,57886.0,57882.0,0.449177]
[1726232694270,0.086372,57886.0,57885.0,0.06878303]
[1726232696355,0.086373,57885.0,57884.0,0.06878303]
[1726232697450,0.086373,57885.0,57884.0,0.15515803]
[1726232697857,0.001,57886.0,57885.0,0.086373]
[1726232698057,0.08637,57888.0,57885.0,0.15515603]
[1726232698255,0.08637,57888.0,57887.0,0.3608]
[1726232698461,0.08637,57888.0,57887.0,0.44717]
[1726232699162,0.08637,57888.0,57887.0,0.3608]
[1726232699367,0.17274,57888.0,57887.0,0.3608]
[1726232699560,0.28637,57888.0,57884.0,0.086373]
[1726232700665,0.086373,57885.0,57884.0,0.086373]
[1726232701770,0.202,57888.0,57882.0,0.447177]
[1726232701771,0.086376,57883.0,57882.0,0.447177]
[1726232703062,0.086376,57883.0,57882.0,0.450177]
[1726232703969,0.086376,57883.0,57882.0,0.089377]
[1726232705564,0.09479725,57883.0,57882.0,0.089377]
[1726232708060,0.09479725,57883.0,57882.0,0.17539588]
[1726232708262,0.18117325,57883.0,57882.0,0.29310332]
[1726232708464,0.46754925,57883.0,57882.0,0.08901888]
[1726232708762,0.46754925,57883.0,57882.0,0.07178065]
[1726232708967,0.46754925,57883.0,57882.0,0.003]
[1726232709168,0.58954925,57883.0,57882.0,0.07178065]
[1726232710267,0.58954925,57883.0,57882.0,0.003]
[1726232712073,0.50317325,57883.0,57882.0,0.003]
[1726232712271,0.086376,57883.0,57882.0,0.003]
[1726232712477,0.0622,57892.0,57888.0,0.086364]
[1726232712684,0.086368,57889.0,57888.0,0.17242789]
[1726232712973,0.086368,57889.0,57888.0,0.2040397]
[1726232714383,0.086368,57889.0,57888.0,0.30731637]
[1726232714571,0.086368,57889.0,57888.0,0.30734272]
[1726232714976,0.089368,57889.0,57888.0,0.30734272]
[1726232715175,0.006,57889.0,57888.0,0.20406605]
[1726232715480,0.006,57889.0,57888.0,0.21261396]
[1726232717083,0.092367,57889.0,57888.0,0.20406605]
[1726232717285,0.178734,57889.0,57888.0,0.11770205]
[1726232718788,0.539534,57889.0,57888.0,0.11770205]
[1726232718975,0.539534,57889.0,57888.0,0.08612953]
[1726232719378,0.3668,57889.0,57888.0,0.08613079]
[1726232719577,0.539534,57889.0,57888.0,0.08613079]
[1726232719779,0.172738,57888.0,57887.0,0.08613079]
[1726232719980,0.086369,57888.0,57887.0,0.20431519]
[1726232720280,0.086369,57888.0,57887.0,0.66869184]
[1726232720477,0.086369,57888.0,57887.0,0.4789844]
[1726232720877,0.088369,57888.0,57887.0,0.1181844]
[1726232721074,0.090369,57888.0,57887.0,0.1181844]
[1726232722577,0.08637,57887.0,57886.0,0.086371]
[1726232723889,0.08637,57887.0,57886.0,0.447171]
[1726232724188,0.08837,57887.0,57886.0,0.447171]
[1726232724386,0.12450752,57887.0,57886.0,0.086371]
[1726232724570,0.08837,57887.0,57886.0,0.086371]
[1726232725279,0.08837,57887.0,57886.0,0.447171]
[1726232726287,0.09682377,57887.0,57886.0,0.447171]
[1726232727878,0.18319377,57887.0,57886.0,0.447171]
[1726232728078,0.18319377,57887.0,57886.0,0.086371]
[1726232728481,0.21929784,57887.0,57886.0,0.086371]
[1726232728782,0.21922642,57887.0,57886.0,0.086371]
[1726232729685,0.18319377,57887.0,57886.0,0.086371]
[1726232733484,0.13997898,57887.0,57886.0,0.56533458]
[1726232737689,0.13997898,57887.0,57886.0,0.086371]
[1726232737894,0.13997898,57887.0,57886.0,0.447171]
[1726232738197,0.05360898,57887.0,57886.0,0.447171]
[1726232738397,0.002,57887.0,57886.0,0.819915]
[1726232739185,0.002,57887.0,57886.0,1.338155]
[1726232739391,0.2583425,57898.0,57895.0,0.172716]
[1726232739392,0.12076647,57898.0,57895.0,0.172716]
[1726232739584,0.00104001,57902.0,57901.0,0.086349]
[1726232739793,0.00104001,57902.0,57901.0,0.172698]
[1726232740094,0.00831032,57908.0,57907.0,0.086341]
[1726232740292,0.00831032,57908.0,57901.0,0.736349]
[1726232740293,0.142436,57910.0,57909.0,0.086338]
[1726232740485,0.26669747,57914.0,57912.0,0.086332]
[1726232740690,0.03747193,57913.0,57912.0,0.086332]
[1726232741001,0.086332,57913.0,57912.0,0.086332]
[1726232741192,0.12385982,57913.0,57912.0,0.086332]
[1726232741396,0.145931,57914.0,57912.0,0.086332]
[1726232741891,0.1544412,57914.0,57912.0,0.086332]
[1726232742083,0.086332,57913.0,57912.0,0.086332]
[1726232742283,0.086335,57911.0,57907.0,0.2]
[1726232743288,0.086335,57911.0,57910.0,0.086335]
[1726232743494,0.0185102,57914.0,57913.0,0.086332]
[1726232743895,0.1048402,57914.0,57913.0,0.086332]
[1726232744094,0.0968402,57914.0,57913.0,0.086332]
[1726232745290,0.0948402,57914.0,57913.0,0.086332]
[1726232745896,0.0978402,57914.0,57913.0,0.086332]
[1726232746097,0.1008402,57914.0,57913.0,0.086332]
[1726232746497,0.2145102,57914.0,57906.0,0.3608]
[1726232746698,0.086341,57907.0,57906.0,0.3608]
[1726232746896,0.172682,57907.0,57906.0,0.3608]
[1726232747100,0.1177,57909.0,57898.0,0.004]
[1726232747396,0.1177,57909.0,57894.0,0.41245307]
[1726232747397,0.086357,57896.0,57895.0,0.004]
[1726232747602,0.086358,57895.0,57894.0,0.3608]
[1726232747794,0.205958,57895.0,57894.0,0.3608]
[1726232748197,0.205958,57895.0,57894.0,0.44716]
[1726232748608,0.086358,57895.0,57894.0,0.44716]
[1726232748904,0.086353,57899.0,57898.0,0.086353]
[1726232750301,0.087353,57899.0,57898.0,0.089353]
[1726232751402,0.09565344,57899.0,57898.0,0.089353]
[1726232751801,0.09665344,57899.0,57898.0,0.089353]
[1726232754812,0.18300644,57899.0,57898.0,0.003]
[1726232756112,0.086363,57893.0,57892.0,0.086363]
[1726232756510,0.086363,57893.0,57890.0,0.086365]
[1726232756511,0.086366,57891.0,57890.0,0.086365]
[1726232756814,0.286366,57891.0,57890.0,0.086365]
[1726232757217,0.343866,57891.0,57890.0,0.086365]
[1726232758713,0.143866,57891.0,57890.0,0.086365]
[1726232758919,0.086366,57891.0,57890.0,0.086365]
[1726232759109,0.001,57891.0,57890.0,0.175731]
[1726232759313,0.001,57891.0,57890.0,0.230131]
[1726232759611,0.002,57891.0,57890.0,0.230131]
[1726232759815,0.00041345,57891.0,57890.0,0.230131]
[1726232760314,0.00041345,57891.0,57890.0,0.143765]
[1726232760916,0.00041345,57891.0,57890.0,0.089365]
[1726232761119,0.08677745,57891.0,57890.0,0.089365]
[1726232764713,0.08637,57887.0,57883.0,0.07267293]
[1726232764919,0.5608,57884.0,57879.0,0.06867293]
[1726232765119,0.086387,57876.0,57875.0,0.06867293]
[1726232765319,0.2,57879.0,57872.0,0.42953304]
[1726232765634,0.086391,57873.0,57872.0,0.3608]
[1726232765823,0.086391,57873.0,57872.0,0.42949935]
[1726232766519,0.086391,57873.0,57872.0,0.3608]
[1726232766930,0.088391,57873.0,57872.0,0.3658]
[1726232771223,0.088391,57873.0,57872.0,0.452193]
[1726232771833,0.002,57873.0,57872.0,1.770593]
[1726232772125,0.004,57882.0,57881.0,0.086379]
[1726232772332,0.086378,57882.0,57881.0,0.447179]
[1726232772531,0.09480371,57882.0,57881.0,1.097179]
[1726232773624,0.09480371,57882.0,57881.0,1.098179]
[1726232774128,0.09480371,57882.0,57881.0,0.449179]
[1726232774731,0.09480371,57882.0,57881.0,1.099179]
[1726232775034,0.09480371,57882.0,57881.0,0.738379]
[1726232775419,0.18118171,57882.0,57881.0,0.002]
[1726232775830,0.18118171,57882.0,57881.0,0.652]
[1726232777133,0.004,57891.0,57881.0,0.852]
[1726232777326,0.00843724,57892.0,57890.0,0.3608]
[1726232777629,0.3648,57901.0,57897.0,0.086354]
[1726232777823,0.3648,57901.0,57895.0,0.3608]
[1726232777824,0.086351,57900.0,57895.0,0.3608]
[1726232778024,0.086353,57899.0,57895.0,0.3608]
[1726232778424,0.086347,57903.0,57897.0,0.2]
[1726232778626,0.004,57909.0,57902.0,0.2]
[1726232778842,0.086336,57910.0,57907.0,0.3608]
[1726232779125,0.086339,57908.0,57907.0,0.3608]
[1726232780326,0.086339,57908.0,57907.0,0.3648]
[1726232784232,0.086339,57908.0,57907.0,0.004]
[1726232784837,0.09467978,57908.0,57907.0,0.004]
[1726232787243,0.18101878,57908.0,57907.0,0.004]
[1726232788745,0.18101878,57908.0,57907.0,0.002]
[1726232788944,0.18101878,57908.0,57907.0,0.005]
[1726232789144,0.26735778,57908.0,57907.0,0.005]
[1726232789341,0.18101878,57908.0,57907.0,0.005]
[1726232789936,0.18101878,57908.0,57907.0,0.007]
[1726232790540,0.086339,57908.0,57907.0,0.087341]
[1726232790843,0.086339,57908.0,57907.0,0.089341]
[1726232792047,0.086339,57908.0,57907.0,0.088341]
[1726232792238,0.086339,57908.0,57907.0,0.089341]
[1726232792854,0.086339,57908.0,57907.0,0.088341]
[1726232793042,0.086339,57908.0,57907.0,0.091341]
[1726232793752,0.086339,57908.0,57907.0,0.093341]
[1726232795039,0.086339,57908.0,57907.0,0.007]
[1726232795244,0.372678,57908.0,57907.0,0.007]
[1726232795744,0.286339,57908.0,57907.0,0.007]
[1726232796342,0.286339,57908.0,57907.0,0.004]
[1726232796555,0.286339,57908.0,57907.0,0.007]
[1726232797750,0.3241194,57908.0,57907.0,0.007]
[1726232799956,0.1241194,57908.0,57907.0,0.093341]
[1726232800149,1.851558,57908.0,57900.0,0.004]
[1726232800456,1.851558,57908.0,57895.0,0.004]
[1726232800457,0.086357,57896.0,57895.0,0.004]
[1726232800649,0.086358,57895.0,57894.0,0.447159]
[1726232801047,0.086358,57895.0,57894.0,0.3608]
[1726232801251,0.172716,57895.0,57894.0,0.3608]
[1726232801467,0.2102024,57895.0,57894.0,0.3608]
[1726232802066,0.2112024,57895.0,57894.0,0.3658]
[1726232803070,0.2122024,57895.0,57894.0,0.3678]
[1726232804166,0.2112024,57895.0,57894.0,0.3628]
[1726232804361,0.33241039,57895.0,57894.0,0.3628]
[1726232804761,0.174716,57895.0,57894.0,0.3628]
[1726232804962,0.1315086,57895.0,57894.0,0.3628]
[1726232806074,0.1305086,57895.0,57894.0,0.3628]
[1726232806269,0.1315086,57895.0,57894.0,0.3628]
[1726232806571,0.1305086,57895.0,57894.0,0.06847307]
[1726232806877,0.1315086,57895.0,57894.0,0.002]
[1726232807282,0.1315086,57895.0,57894.0,0.07047307]
[1726232808163,0.1315086,57895.0,57894.0,0.07247307]
[1726232808972,0.1315086,57895.0,57894.0,0.004]
[1726232812375,0.1315086,57895.0,57894.0,0.07247307]
[1726232812568,0.1315086,57895.0,57894.0,0.004]
[1726232814378,0.1692938,57895.0,57894.0,0.004]
[1726232815566,0.16916541,57895.0,57894.0,0.004]
[1726232816475,0.16916472,57895.0,57894.0,0.004]
[1726232817475,0.0451506,57895.0,57894.0,0.09036]
[1726232817775,0.002,57895.0,57894.0,0.73752]
[1726232818282,0.002,57895.0,57894.0,1.85572]
[1726232818477,0.002,57895.0,57894.0,2.50572]
[1726232818868,0.004,57906.0,57894.0,2.50572]
[1726232818869,0.004,57906.0,57894.0,2.42777278]
[1726232819081,0.086342,57907.0,57894.0,2.42777278]
[1726232819082,0.0382785,57905.0,57900.0,0.5608]
[1726232819276,0.086342,57907.0,57906.0,0.086342]
[1726232819583,0.12464356,57907.0,57906.0,0.086342]
[1726232819882,0.09479967,57907.0,57906.0,0.086342]
[1726232820480,0.092342,57907.0,57906.0,0.086342]
[1726232820875,0.098342,57907.0,57906.0,0.086342]
[1726232822075,0.086345,57904.0,57903.0,0.06847307]
[1726232822274,0.086345,57904.0,57902.0,0.06847307]
[1726232822275,0.172692,57903.0,57902.0,0.06847307]
[1726232822479,0.086352,57899.0,57895.0,0.06847307]
[1726232822781,0.086357,57896.0,57895.0,0.06847307]
[1726232823469,0.086357,57896.0,57895.0,0.15483107]
[1726232823977,0.086357,57896.0,57895.0,0.447158]
[1726232824175,0.087357,57896.0,57895.0,0.451158]
[1726232824371,0.088357,57896.0,57895.0,0.455158]
[1726232824778,0.002,57896.0,57895.0,0.455158]
[1726232825173,0.002,57896.0,57895.0,0.54063059]
[1726232825374,0.002,57896.0,57895.0,0.57117331]
[1726232826670,0.202,57896.0,57895.0,0.48481531]
[1726232826872,0.202,57896.0,57895.0,0.008]
[1726232826873,0.374714,57896.0,57895.0,0.008]
[1726232827875,0.41236116,57896.0,57895.0,0.008]
[1726232828478,0.49771816,57896.0,57895.0,0.005]
[1726232828778,0.61792615,57896.0,57895.0,0.005]
[1726232829478,0.54041333,57896.0,57895.0,0.002]
[1726232830079,0.54041333,57896.0,57895.0,0.001]
[1726232830878,0.54141333,57896.0,57895.0,0.001]
[1726232831083,0.50376617,57896.0,57895.0,0.001]
[1726232831386,0.54043794,57896.0,57895.0,0.001]
[1726232831579,0.172734,57889.0,57888.0,0.004]
[1726232831783,0.086375,57884.0,57883.0,0.447175]
[1726232833180,0.086375,57884.0,57883.0,0.3608]
[1726232833384,0.086375,57884.0,57883.0,0.447176]
[1726232834175,0.087375,57884.0,57883.0,0.450176]
[1726232834584,0.088375,57884.0,57883.0,0.453176]
[1726232835098,0.088375,57884.0,57883.0,0.56879173]
[1726232835281,0.17475,57884.0,57883.0,0.3668]
[1726232836780,0.261125,57884.0,57883.0,0.006]
[1726232837089,0.261125,57884.0,57883.0,0.07459403]
[1726232837387,0.26970923,57884.0,57883.0,0.006]
[1726232837588,0.26970923,57884.0,57883.0,0.003]
[1726232837589,0.32410923,57884.0,57883.0,0.003]
[1726232837782,0.32510923,57884.0,57883.0,0.006]
[1726232838378,0.32410923,57884.0,57883.0,0.003]
[1726232838691,0.32510923,57884.0,57883.0,0.006]
[1726232839080,0.23873423,57884.0,57883.0,0.006]
[1726232839291,0.18333423,57884.0,57883.0,0.006]
[1726232843297,0.09695923,57884.0,57883.0,0.006]
[1726232843490,0.002,57884.0,57883.0,1.297032]
[1726232843796,0.086364,57892.0,57891.0,0.086363]
[1726232843998,0.086364,57892.0,57891.0,0.736363]
[1726232845193,0.094364,57892.0,57891.0,0.736363]
[1726232846498,0.091364,57892.0,57891.0,0.740363]
[1726232846700,0.087364,57892.0,57891.0,0.740363]
[1726232846904,0.002,57892.0,57891.0,0.744363]
[1726232847897,0.088363,57892.0,57891.0,0.744363]
[1726232850193,0.002,57892.0,57891.0,0.744363]
[1726232855203,0.002,57892.0,57891.0,0.094363]
[1726232855804,0.002,57892.0,57891.0,0.744363]
[1726232857808,0.088363,57892.0,57891.0,0.744363]
[1726232858501,0.088363,57892.0,57891.0,1.105163]
[1726232859808,0.174726,57892.0,57891.0,0.3688]
[1726232861397,0.260089,57892.0,57891.0,0.3648]
[1726232861599,0.261089,57892.0,57891.0,0.3688]
[1726232862104,0.261089,57892.0,57884.0,0.004]
[1726232862105,1.264563,57892.0,57884.0,0.004]
[1726232862413,0.3608,57885.0,57874.0,0.004]
[1726232862605,0.7216,57875.0,57865.0,0.004]
[1726232862805,0.286402,57866.0,57864.0,0.086404]
[1726232863110,0.2,57866.0,57863.0,0.0539]
[1726232863303,0.086405,57864.0,57863.0,0.0539]
[1726232863503,0.04317801,57864.0,57863.0,0.0539]
[1726232864208,0.03917801,57864.0,57863.0,0.0539]
[1726232865002,0.04017801,57864.0,57863.0,0.0539]
[1726232866103,0.04117801,57864.0,57863.0,0.0539]
[1726232867904,0.04117801,57864.0,57863.0,0.7039]
[1726232869611,0.04117801,57864.0,57863.0,0.790306]
[1726232872106,0.00850383,57867.0,57863.0,1.00813457]
[1726232872307,0.2,57864.0,57863.0,0.790306]
[1726232872506,0.2,57864.0,57863.0,0.90540377]
[1726232873208,0.286405,57864.0,57863.0,0.90540377]
[1726232874107,0.287405,57864.0,57863.0,0.90540377]
[1726232874507,0.287405,57864.0,57863.0,0.90468105]
[1726232875709,0.287405,57864.0,57863.0,0.9902478]
[1726232877117,0.287405,57864.0,57863.0,0.9363478]
[1726232877513,0.287405,57864.0,57863.0,0.93634456]
[1726232877712,0.22688845,57864.0,57863.0,0.85078105]
[1726232878114,0.22688845,57864.0,57863.0,0.9363461]
[1726232878313,0.22688845,57864.0,57863.0,0.82197105]
[1726232878913,0.22688845,57864.0,57863.0,0.08556505]
[1726232879120,0.086412,57859.0,57858.0,0.08556505]
[1726232879311,0.286412,57859.0,57858.0,0.17197705]
[1726232879513,0.286412,57859.0,57858.0,0.736412]
[1726232879713,0.372824,57859.0,57858.0,0.65]
[1726232879910,0.286412,57859.0,57856.0,0.00088]
[1726232880214,0.2,57859.0,57853.0,0.086421]
[1726232880416,0.086421,57854.0,57853.0,0.086421]
[1726232880611,0.001,57859.0,57852.0,0.0577]
[1726232880817,0.086418,57856.0,57855.0,0.086416]
[1726232881826,0.085418,57856.0,57855.0,0.086416]
[1726232882319,0.085418,57856.0,57853.0,0.65088]
[1726232882320,0.08542,57854.0,57853.0,0.65088]
[1726232882519,0.08542,57854.0,57853.0,0.65]
[1726232883227,0.08542,57854.0,57853.0,0.736421]
[1726232883531,0.08642,57854.0,57853.0,0.736421]
[1726232884519,0.08742,57854.0,57853.0,0.736421]
[1726232885126,0.08642,57854.0,57853.0,0.736421]
[1726232885326,0.08742,57854.0,57853.0,0.736421]
[1726232888235,0.08642,57854.0,57853.0,0.736421]
[1726232888431,0.08742,57854.0,57853.0,0.736421]
[1726232889140,0.002,57854.0,57853.0,0.736421]
[1726232889345,0.08842,57854.0,57853.0,0.736421]
[1726232890336,0.086421,57853.0,57852.0,0.0577]
[1726232891635,0.087421,57853.0,57852.0,0.0577]
[1726232892642,0.087421,57853.0,57852.0,0.086423]
[1726232892941,0.087421,57853.0,57852.0,0.28665028]
[1726232893342,0.088421,57853.0,57852.0,0.28665028]
[1726232893535,0.088421,57853.0,57852.0,0.17198805]
[1726232894244,0.088421,57853.0,57852.0,0.2866377]
[1726232894744,0.088421,57853.0,57852.0,0.2002147]
[1726232895045,0.002,57853.0,57852.0,0.2002147]
[1726232895252,0.002,57853.0,57852.0,0.82198805]
[1726232895447,0.002,57853.0,57852.0,0.93647399]
[1726232895643,0.002,57853.0,57852.0,0.93640624]
[1726232896152,0.002,57853.0,57852.0,0.82198805]
[1726232897351,0.004,57860.0,57859.0,0.086412]
[1726232897556,0.36584001,57863.0,57862.0,0.086408]
[1726232897751,0.3608,57870.0,57867.0,0.0864]
[1726232897752,0.086397,57869.0,57867.0,0.0864]
[1726232897945,0.086402,57867.0,57861.0,0.08573224]
[1726232898746,0.086402,57867.0,57864.0,0.086403]
[1726232898953,0.286402,57866.0,57860.0,0.25401224]
[1726232899149,0.3608,57865.0,57861.0,0.086409]
[1726232899343,0.086412,57859.0,57858.0,0.08573224]
[1726232899660,0.086412,57859.0,57858.0,0.086413]
[1726232900348,0.086412,57859.0,57858.0,0.17214524]
[1726232900550,0.086409,57861.0,57860.0,0.08641]
[1726232900946,0.286409,57862.0,57860.0,0.08641]
[1726232901149,0.086412,57859.0,57856.0,0.08573224]
[1726232902157,0.086412,57859.0,57858.0,0.13788627]
[1726232902362,0.286412,57859.0,57858.0,0.05147227]
[1726232902655,0.086417,57856.0,57855.0,0.13788927]
[1726232902860,0.086417,57856.0,57855.0,0.086417]
[1726232903650,0.3608,57859.0,57857.0,0.086414]
[1726232903850,0.086414,57858.0,57857.0,0.086414]
[1726232904853,0.086414,57858.0,57857.0,0.13788627]
[1726232905556,0.087414,57858.0,57857.0,0.13788627]
[1726232905862,0.088414,57858.0,57857.0,0.13788627]
[1726232906061,0.088414,57858.0,57857.0,0.086414]
[1726232907356,0.088414,57858.0,57857.0,0.13796177]
[1726232907562,0.088414,57858.0,57857.0,0.086414]
[1726232908146,0.088414,57858.0,57857.0,0.1379605]
[1726232908551,0.288414,57858.0,57857.0,0.086414]
[1726232908761,0.086415,57857.0,57856.0,0.0515465]
[1726232909354,0.202,57858.0,57852.0,0.65088]
[1726232909355,0.086417,57856.0,57852.0,0.00088]
[1726232909554,0.086427,57850.0,57849.0,0.086427]
[1726232910261,0.2,57853.0,57851.0,0.086424]
[1726232910262,0.086424,57852.0,57851.0,0.086424]
[1726232910463,0.086424,57852.0,57851.0,0.11492822]
[1726232910852,0.086426,57850.0,57849.0,0.18930469]
[1726232911048,0.086426,57850.0,57849.0,0.30423236]
[1726232911654,0.086426,57850.0,57849.0,0.31288255]
[1726232911962,0.088426,57850.0,57849.0,0.21000386]
[1726232912354,0.088426,57850.0,57849.0,0.31288255]
[1726232912568,0.088426,57850.0,57849.0,0.21000386]
[1726232913662,0.002,57850.0,57849.0,0.21000386]
[1726232914366,0.088426,57850.0,57849.0,0.21000386]
[1726232915459,0.088426,57850.0,57849.0,0.31308796]
[1726232915860,0.088426,57850.0,57849.0,0.20953552]
[1726232917164,0.088426,57850.0,57849.0,0.31259287]
[1726232917369,0.088426,57850.0,57849.0,0.09507619]
[1726232917667,0.088426,57850.0,57849.0,0.086426]
[1726232920657,0.088426,57850.0,57847.0,0.3608]
[1726232920658,0.086429,57848.0,57847.0,0.08643]
[1726232920869,0.086436,57843.0,57842.0,0.1113]
[1726232921062,0.647236,57843.0,57842.0,0.086438]
[1726232921661,0.086439,57841.0,57840.0,0.05155491]
[1726232921860,0.086439,57841.0,57840.0,0.13799591]
[1726232922170,0.086446,57837.0,57835.0,0.16885491]
[1726232922372,0.2,57836.0,57835.0,0.05153477]
[1726232922562,0.086448,57835.0,57834.0,0.13798277]
[1726232922762,0.08645,57834.0,57833.0,0.05153477]
[1726232922959,0.086451,57833.0,57832.0,0.05154169]
[1726232923170,0.086453,57832.0,57830.0,0.13799669]
[1726232923474,0.086453,57832.0,57830.0,0.086455]
[1726232924268,0.086453,57832.0,57831.0,0.05148927]
[1726232924858,0.086453,57832.0,57830.0,0.13794427]
[1726232925263,0.086453,57832.0,57830.0,0.086455]
[1726232925571,0.087453,57832.0,57831.0,0.08588098]
[1726232925765,0.088453,57832.0,57831.0,0.08588098]
[1726232926271,0.087453,57832.0,57830.0,0.17233598]
[1726232926568,0.088453,57832.0,57830.0,0.17233598]
[1726232926870,0.002,57832.0,57830.0,0.086455]
[1726232927070,0.002,57832.0,57831.0,0.086454]
[1726232927867,0.001,57832.0,57831.0,0.086454]
[1726232928074,0.002,57832.0,57831.0,0.086454]
[1726232928575,0.088453,57832.0,57831.0,0.086454]
[1726232929869,0.086455,57830.0,57829.0,0.0571]
[1726232930077,0.086457,57829.0,57828.0,0.00088]
[1726232930374,0.086457,57829.0,57824.0,0.05141485]
[1726232930375,0.086463,57825.0,57824.0,0.05141485]
[1726232930571,0.086464,57824.0,57823.0,0.05141485]
[1726232930874,0.086464,57824.0,57822.0,0.00104]
[1726232930875,0.086466,57823.0,57822.0,0.05141485]
[1726232931372,0.086465,57824.0,57820.0,0.05141485]
[1726232931373,0.086469,57821.0,57820.0,0.05141485]
[1726232931571,0.286469,57821.0,57820.0,0.05141485]
[1726232932173,0.286469,57821.0,57819.0,0.19528585]
[1726232932371,0.44727,57820.0,57819.0,0.143871]
[1726232932767,0.08647,57820.0,57819.0,0.143871]
[1726232933071,0.44727,57820.0,57819.0,0.143871]
[1726232933672,0.44727,57820.0,57819.0,0.0574]
[1726232934778,0.086472,57819.0,57818.0,0.0594]
[1726232935473,0.086472,57819.0,57818.0,0.145873]
[1726232935864,0.087472,57819.0,57818.0,0.145873]
[1726232936068,0.086476,57816.0,57815.0,0.13784534]
[1726232936270,0.286476,57816.0,57815.0,0.086477]
[1726232936475,0.086478,57815.0,57814.0,0.05136834]
[1726232936678,0.086478,57815.0,57814.0,0.13779317]
[1726232936879,0.086478,57815.0,57814.0,0.05131417]
[1726232937774,0.2,57816.0,57813.0,0.0575]
[1726232937775,0.086479,57814.0,57813.0,0.0575]
[1726232938173,0.086484,57811.0,57810.0,0.0603]
[1726232938467,0.286484,57811.0,57810.0,0.0603]